bitfinex/quotes_SOLUSD_20241110
["timestamp","ask_amount","ask_price","bid_price","bid_amount"]
[1731238951269,3.95947,206.5,206.38,21.3966]
[1731238951466,3.95947,206.5,206.32,0.1]
[1731238951467,3.95947,206.5,206.39,21.3966]
[1731238951668,4.05397199,206.57,206.39,21.3966]
[1731238951971,4.053972,206.53,206.39,21.3966]
[1731238956786,4.053972,206.53,206.4,15.1242]
[1731238957089,4.053972,206.53,206.42,15.1242]
[1731238962876,4.053972,206.53,206.44,15.1011]
[1731238963076,4.053972,206.53,206.42,0.1]
[1731238963077,0.12549,206.68,206.46,21.3943]
[1731238963680,0.12549,206.66,206.46,21.3943]
[1731238964002,3.24,206.67,206.47,15.1011]
[1731238964200,3.24,206.67,206.5,6.2932]
[1731238964397,3.24,206.67,206.51,15.1011]
[1731238964705,0.12549,206.66,206.51,15.1011]
[1731238965578,34.64549,206.66,206.51,15.1011]
[1731238966383,20.12549,206.64,206.51,15.1011]
[1731238966585,34.64549,206.64,206.51,15.1011]
[1731238966901,0.12549,206.63,206.51,15.1011]
[1731238967586,34.52,206.65,206.51,15.1011]
[1731238967787,0.12549,206.64,206.51,15.1011]
[1731238969604,0.51538999,206.64,206.51,15.1011]
[1731238969803,0.12549,206.64,206.51,15.1011]
[1731238971696,20.0,206.66,206.51,15.1011]
[1731238972197,0.12549,206.65,206.51,15.1011]
[1731238972395,0.12549,206.63,206.51,15.1011]
[1731238972600,0.12549,206.61,206.51,15.1011]
[1731238973203,0.55439,206.61,206.5,6.2932]
[1731238973393,0.12549,206.61,206.5,6.2932]
[1731238973706,34.52,206.62,206.5,6.2932]
[1731238973913,0.12549,206.6,206.5,6.2932]
[1731238974486,0.12549,206.61,206.5,6.2932]
[1731238975889,0.12549,206.59,206.5,6.2932]
[1731238976506,0.12549,206.61,206.5,6.2932]
[1731238977002,0.38989999,206.6,206.5,6.2932]
[1731238977312,34.52,206.62,206.5,6.2932]
[1731238977503,20.12549,206.6,206.5,6.2932]
[1731238978400,0.12549,206.58,206.5,6.2932]
[1731238978611,0.12549,206.59,206.5,6.2932]
[1731238983522,15.1011,206.61,206.5,6.2932]
[1731238984494,20.0,206.6,206.5,6.2932]
[1731238984699,20.0,206.6,206.51,16.6518]
[1731238986701,0.28569999,206.59,206.51,16.6518]
[1731238987024,20.0,206.6,206.51,16.6518]
[1731238987410,0.28569999,206.59,206.51,16.6518]
[1731238987607,0.12549,206.59,206.51,16.6518]
[1731238993218,0.12549,206.59,206.51,1.7518]
[1731238993525,0.12549,206.59,206.33,0.1]
[1731238993707,0.12549,206.59,206.36,6.2994]
[1731238994905,0.12549,206.59,206.37,6.3994]
[1731238995216,15.1011,206.61,206.39,0.1]
[1731238995405,0.12549,206.6,206.4,6.2994]
[1731238996213,0.12549,206.6,206.41,10.1226]
[1731238996505,20.12549,206.6,206.42,6.2994]
[1731238997804,20.12549,206.6,206.43,16.422]
[1731238998216,20.12549,206.6,206.44,16.422]
[1731238999223,0.12549,206.57,206.44,16.422]
[1731238999927,0.12549,206.59,206.44,16.422]
[1731239000506,20.0,206.6,206.44,16.422]
[1731239001010,0.12549,206.59,206.44,16.422]
[1731239003629,0.12549,206.57,206.44,16.422]
[1731239004631,20.0,206.6,206.44,16.422]
[1731239005130,0.12549,206.59,206.44,16.422]
[1731239006036,15.1011,206.61,206.43,16.7224]
[1731239006215,15.1011,206.61,206.47,16.7224]
[1731239007735,20.0,206.6,206.47,16.7224]
[1731239009219,20.0,206.6,206.48,16.7224]
[1731239014313,0.12549,206.59,206.48,16.7224]
[1731239016922,20.0,206.6,206.48,16.7224]
[1731239017128,0.12549,206.59,206.48,16.7224]
[1731239018322,20.0,206.6,206.48,16.7224]
[1731239018738,0.12549,206.59,206.48,16.7224]
[1731239019931,20.0,206.6,206.48,16.7224]
[1731239020942,0.3375,206.59,206.48,16.7224]
[1731239021133,20.0,206.6,206.48,16.7224]
[1731239021828,0.12549,206.6,206.48,16.7224]
[1731239022327,15.1011,206.61,206.48,16.7224]
[1731239023121,20.0,206.6,206.48,16.7224]
[1731239025126,25.73887452,206.6,206.48,16.7224]
[1731239026545,0.12549,206.59,206.48,16.7224]
[1731239026844,20.0,206.58,206.48,16.7224]
[1731239029557,20.0,206.6,206.48,16.7224]
[1731239033050,3.95761044,206.62,206.48,16.7224]
[1731239033352,0.12549,206.63,206.48,16.7224]
[1731239033545,2.26209998,206.62,206.48,16.7224]
[1731239033750,16.84789,206.63,206.48,16.7224]
[1731239033940,0.12549,206.61,206.48,16.7224]
[1731239034437,1.06640002,206.6,206.48,16.7224]
[1731239034628,0.12549,206.61,206.48,16.7224]
[1731239035028,1.60369399,206.61,206.48,16.7224]
[1731239035335,0.08879397,206.61,206.48,16.7224]
[1731239037564,0.3914,206.6,206.48,16.7224]
[1731239037949,0.08879397,206.61,206.48,16.7224]
[1731239043564,0.92869398,206.61,206.48,16.7224]
[1731239043735,0.08879397,206.61,206.48,16.7224]
[1731239044850,0.78449395,206.61,206.48,16.7224]
[1731239045058,0.08879397,206.61,206.48,16.7224]
[1731239046150,34.52,206.62,206.48,16.7224]
[1731239046368,0.12549,206.61,206.48,16.7224]
[1731239048648,20.12549,206.59,206.48,16.7224]
[1731239048846,0.3914,206.58,206.48,16.7224]
[1731239049066,20.12549,206.59,206.48,16.7224]
[1731239049644,0.3375,206.58,206.48,16.7224]
[1731239049846,20.12549,206.59,206.48,16.7224]
[1731239050345,20.3914,206.58,206.48,16.7224]
[1731239050551,0.3914,206.57,206.48,16.7224]
[1731239050760,20.0,206.58,206.48,16.7224]
[1731239052656,0.89139997,206.57,206.48,16.7224]
[1731239052963,20.0,206.58,206.48,16.7224]
[1731239053340,0.12549,206.59,206.48,16.7224]
[1731239053545,5.60751001,206.6,206.48,16.7224]
[1731239053766,20.12549,206.59,206.48,16.7224]
[1731239054063,20.46299,206.59,206.48,16.7224]
[1731239054268,20.12549,206.59,206.48,16.7224]
[1731239054864,22.29449002,206.59,206.48,16.7224]
[1731239055165,20.12549,206.59,206.48,16.7224]
[1731239055754,20.46299,206.59,206.48,16.7224]
[1731239055957,20.12549,206.59,206.48,16.7224]
[1731239063561,25.73300001,206.59,206.48,16.7224]
[1731239063760,0.12549,206.57,206.48,16.7224]
[1731239063960,20.0,206.57,206.48,16.7224]
[1731239065262,0.12549,206.56,206.48,16.7224]
[1731239069674,20.0,206.55,206.48,16.7224]
[1731239070086,0.12549,206.54,206.48,16.7224]
[1731239070872,0.12549,206.54,206.48,6.5998]
[1731239071467,0.12549,206.54,206.43,16.2591]
[1731239072484,0.12549,206.52,206.43,16.2591]
[1731239072667,25.73300001,206.52,206.43,16.2591]
[1731239073172,41.84740001,206.52,206.37,16.2591]
[1731239073475,20.12549,206.5,206.37,16.2591]
[1731239073860,0.12549,206.49,206.37,16.2591]
[1731239074061,20.12549,206.49,206.37,16.2591]
[1731239074267,20.0,206.49,206.37,16.2591]
[1731239074475,20.0,206.51,206.37,16.2591]
[1731239075169,20.0,206.49,206.37,16.2591]
[1731239078984,0.12549,206.48,206.37,16.2591]
[1731239085186,23.98029758,206.49,206.37,16.2591]
[1731239086088,16.2591,206.5,206.22,3.99400664]
[1731239086089,16.2591,206.5,206.38,16.5703]
[1731239087161,20.35719094,206.5,206.38,16.5703]
[1731239087587,20.0,206.49,206.38,16.5703]
[1731239089975,20.0,206.49,206.39,6.4477]
[1731239090170,20.0,206.49,206.34,0.1]
[1731239090171,20.0,206.49,206.41,6.4477]
[1731239090489,16.2591,206.5,206.41,6.4477]
[1731239090668,16.2273,206.62,206.42,10.1226]
[1731239090669,5.67448021,206.59,206.42,10.1226]
[1731239091064,0.12549,206.58,206.42,10.1226]
[1731239091290,15.92257021,206.58,206.42,10.1226]
[1731239092588,20.0,206.57,206.42,10.1226]
[1731239093775,0.12549,206.56,206.42,10.1226]
[1731239093983,0.12549,206.54,206.42,10.1226]
[1731239095677,20.0,206.55,206.42,10.1226]
[1731239096403,23.55643856,206.55,206.42,10.1226]
[1731239097482,10.13542832,206.55,206.42,10.1226]
[1731239098693,20.0,206.54,206.42,10.1226]
[1731239100506,10.13542832,206.55,206.42,10.1226]
[1731239100792,10.1226,206.58,206.45,16.5703]
[1731239101218,10.1226,206.58,206.46,16.5703]
[1731239101491,10.1226,206.58,206.47,16.5703]
[1731239102900,16.20158976,206.58,206.47,16.5703]
[1731239103198,20.12549,206.57,206.47,16.5703]
[1731239103403,26.20447976,206.57,206.47,16.5703]
[1731239105595,0.12549,206.55,206.42,16.4857]
[1731239105777,6.20447976,206.55,206.42,16.4857]
[1731239105982,20.12549,206.53,206.42,16.4857]
[1731239106191,26.20447976,206.53,206.42,16.4857]
[1731239107209,20.12549,206.51,206.37,16.4857]
[1731239107496,26.20447976,206.51,206.37,16.4857]
[1731239107976,6.07898976,206.5,206.37,16.4857]
[1731239108176,35.85079,206.49,206.37,16.4857]
[1731239108490,20.12549,206.47,206.37,16.4857]
[1731239109075,20.47147975,206.47,206.35,6.3631]
[1731239109280,20.0,206.47,206.35,6.3631]
[1731239109479,0.12549,206.46,206.35,6.3631]
[1731239109899,0.12549,206.49,206.35,6.3631]
[1731239110099,0.12549,206.47,206.35,6.3631]
[1731239110403,0.12549,206.49,206.35,6.3631]
[1731239110603,0.12549,206.47,206.35,6.3631]
[1731239110902,0.12549,206.49,206.35,6.3631]
[1731239111206,0.12549,206.48,206.35,6.3631]
[1731239111385,0.12549,206.46,206.35,6.3631]
[1731239111581,20.0,206.5,206.35,6.3631]
[1731239111793,0.12549,206.48,206.35,6.3631]
[1731239112302,0.12549,206.46,206.35,6.3631]
[1731239112602,6.91959989,206.45,206.35,6.3631]
[1731239112786,0.12549,206.44,206.35,6.3631]
[1731239113305,0.12549,206.46,206.34,10.1226]
[1731239113808,20.12549,206.44,206.3,6.3631]
[1731239116001,20.12549,206.42,206.3,6.3631]
[1731239116590,22.17049001,206.42,206.3,6.3631]
[1731239116791,20.12549,206.42,206.3,6.3631]
[1731239116995,0.12549,206.41,206.3,6.3631]
[1731239117911,176.1253,206.45,206.3,6.3631]
[1731239118092,0.12549,206.43,206.3,6.3631]
[1731239118803,14.64549,206.44,206.3,6.3631]
[1731239118986,0.12549,206.44,206.3,6.3631]
[1731239119409,164.38461051,206.45,206.3,6.3631]
[1731239120085,0.12549,206.44,206.3,6.3631]
[1731239120497,3.98461051,206.45,206.3,6.3631]
[1731239120701,20.0,206.48,206.3,6.3631]
[1731239121008,5.9980431,206.49,206.3,6.3631]
[1731239121305,0.12549,206.48,206.3,6.3631]
[1731239121788,6.1235331,206.48,206.3,6.3631]
[1731239122111,0.12549,206.46,206.3,6.3631]
[1731239123593,0.12549,206.48,206.3,6.3631]
[1731239124301,0.12549,206.46,206.3,6.3631]
[1731239124598,0.12549,206.44,206.3,6.3631]
[1731239125801,20.0,206.45,206.3,6.3631]
[1731239125998,20.0,206.47,206.3,6.3631]
[1731239126519,20.0,206.47,206.31,16.7284]
[1731239130020,10.1226,206.48,206.31,16.7284]
[1731239130402,10.1226,206.48,206.33,16.7284]
[1731239131213,20.0,206.47,206.33,16.7284]
[1731239135037,20.0,206.47,206.34,6.6058]
[1731239135347,20.0,206.47,206.35,10.1226]
[1731239135719,10.1226,206.48,206.36,6.6058]
[1731239135925,10.1226,206.48,206.38,6.6058]
[1731239136937,10.1226,206.48,206.39,10.1226]
[1731239146949,20.0,206.47,206.33,16.3683]
[1731239147334,0.12549,206.46,206.33,16.3683]
[1731239147657,20.0,206.47,206.33,16.3683]
[1731239149234,20.0,206.47,206.27,0.1]
[1731239149235,10.1226,206.48,206.35,16.3683]
[1731239150169,10.1226,206.48,206.36,16.3683]
[1731239150451,10.1226,206.48,206.37,16.3683]
[1731239152339,10.1226,206.48,206.38,16.3683]
[1731239152546,10.1226,206.48,206.39,16.3683]
[1731239152737,4.04753629,206.54,206.4,16.3683]
[1731239153052,20.0,206.59,206.4,16.3683]
[1731239153246,20.0,206.52,206.4,16.3683]
[1731239153446,16.3683,206.53,206.4,16.3683]
[1731239153646,16.3683,206.53,206.38,0.1]
[1731239153647,16.3683,206.53,206.41,16.5683]
[1731239153850,16.3683,206.53,206.44,10.1226]
[1731239154042,3.95377583,206.6,206.44,10.1226]
[1731239154250,10.1226,206.59,206.44,10.1226]
[1731239155756,20.0,206.58,206.44,10.1226]
[1731239159238,20.0,206.58,206.46,10.1226]
[1731239159555,20.0,206.58,206.47,6.2457]
[1731239160158,10.1226,206.59,206.51,6.2457]
[1731239160362,15.4834,206.71,206.52,10.1226]
[1731239160542,5.9980431,206.7,206.52,10.1226]
[1731239160855,16.1206431,206.7,206.52,10.1226]
[1731239161070,10.1226,206.7,206.52,10.1226]
[1731239161638,10.1226,206.7,206.53,6.2457]
[1731239162139,20.0,206.69,206.53,6.2457]
[1731239162540,6.1235331,206.68,206.53,6.2457]
[1731239162752,20.0,206.67,206.53,6.2457]
[1731239162955,25.9980431,206.67,206.53,6.2457]
[1731239163160,20.0,206.65,206.53,6.2457]
[1731239166371,23.95687637,206.65,206.53,6.2457]
[1731239167669,5.9980431,206.66,206.53,6.2457]
[1731239167975,10.1226,206.7,206.53,6.2457]
[1731239168159,16.1206431,206.7,206.53,6.2457]
[1731239168970,20.0,206.69,206.53,6.2457]
[1731239169358,25.9980431,206.69,206.53,6.2457]
[1731239169559,0.12549,206.66,206.53,6.2457]
[1731239169769,0.12549,206.64,206.53,6.2457]
[1731239169960,26.1235331,206.64,206.53,6.2457]
[1731239170157,26.1235331,206.64,206.52,10.1226]
[1731239170158,20.0,206.62,206.52,10.1226]
[1731239171269,20.0,206.62,206.48,16.5316]
[1731239173066,23.98743617,206.62,206.48,16.5316]
[1731239173273,0.12549,206.61,206.48,16.5316]
[1731239173970,29.98547927,206.62,206.48,16.5316]
[1731239174464,20.0,206.62,206.48,16.5316]
[1731239174772,20.0,206.65,206.48,16.5316]
[1731239174954,24.10457676,206.65,206.48,16.5316]
[1731239178955,0.12549,206.64,206.48,16.5316]
[1731239180889,4.10457676,206.65,206.48,16.5316]
[1731239181086,20.0,206.67,206.48,16.5316]
[1731239181388,0.12549,206.66,206.48,16.5316]
[1731239181567,24.0355441,206.67,206.45,16.1732]
[1731239181773,24.0355441,206.67,206.48,10.1226]
[1731239182164,4.0355441,206.67,206.49,16.4465]
[1731239182385,16.5878,206.68,206.49,16.4465]
[1731239182770,10.1226,206.7,206.52,6.3239]
[1731239183087,10.1226,206.7,206.53,10.1226]
[1731239184089,20.0,206.69,206.53,10.1226]
[1731239186681,0.12549,206.68,206.53,10.1226]
[1731239187998,20.0,206.69,206.53,10.1226]
[1731239188879,0.12549,206.68,206.53,10.1226]
[1731239190574,20.0,206.69,206.53,10.1226]
[1731239196990,20.0,206.69,206.52,6.3239]
[1731239196991,20.0,206.69,206.55,10.1226]
[1731239197214,14.21672434,206.7,206.56,16.4465]
[1731239198297,20.0,206.69,206.56,16.4465]
[1731239200900,20.12549,206.67,206.5,16.4465]
[1731239201213,26.33727944,206.67,206.5,16.4465]
[1731239201412,6.21178944,206.66,206.5,16.4465]
[1731239201619,20.0,206.65,206.5,16.4465]
[1731239204206,20.0,206.64,206.5,16.4465]
[1731239205815,26.21178944,206.64,206.5,16.4465]
[1731239209521,6.21178944,206.64,206.5,16.4465]
[1731239210704,20.0,206.63,206.5,16.4465]
[1731239213921,0.12549,206.62,206.5,16.4465]
[1731239214299,24.81730319,206.63,206.5,16.4465]
[1731239216998,20.0,206.62,206.5,16.4465]
[1731239217626,24.81730319,206.63,206.5,16.4465]
[1731239221731,20.0,206.61,206.5,16.4465]
[1731239224624,4.10618671,206.64,206.5,16.4465]
[1731239224833,0.12549,206.65,206.5,16.4465]
[1731239225234,20.0,206.66,206.5,16.4465]
[1731239225929,160.4,206.67,206.5,16.4465]
[1731239226430,160.4,206.67,206.48,16.5004]
[1731239226631,10.1226,206.7,206.52,6.3778]
[1731239226836,0.12549,206.69,206.53,10.1226]
[1731239227540,14.19197654,206.7,206.54,6.3778]
[1731239227728,6.21178944,206.69,206.54,6.3778]
[1731239228831,20.0,206.68,206.54,6.3778]
[1731239229330,6.21178944,206.69,206.55,10.1226]
[1731239229524,14.19197654,206.7,206.56,6.3778]
[1731239229914,14.19197654,206.7,206.55,10.1226]
[1731239229915,14.19197654,206.7,206.58,16.5004]
[1731239231523,14.19197654,206.7,206.59,16.5004]
[1731239231735,20.0,206.69,206.59,16.5004]
[1731239231943,10.1226,206.7,206.59,16.5004]
[1731239233123,20.0,206.69,206.59,16.5004]
[1731239236316,4.04747933,206.72,206.59,16.5004]
[1731239236516,20.0,206.76,206.59,16.5004]
[1731239236716,20.0,206.74,206.59,16.5004]
[1731239236937,25.872345,206.74,206.59,16.5004]
[1731239237241,20.0,206.69,206.59,16.5004]
[1731239244026,16.5004,206.7,206.59,16.5004]
[1731239244341,20.0,206.69,206.59,16.5004]
[1731239244552,16.5004,206.7,206.59,16.5004]
[1731239248344,3.95714564,206.74,206.6,16.6479]
[1731239248545,16.5004,206.73,206.6,16.5479]
[1731239249731,20.0,206.72,206.6,16.5479]
[1731239249927,19.5,206.72,206.6,16.5479]
[1731239251347,16.5004,206.73,206.6,16.6479]
[1731239251928,16.5004,206.73,206.61,16.5479]
[1731239252247,16.5004,206.73,206.62,16.5479]
[1731239253030,16.5004,206.73,206.63,16.5479]
[1731239253249,190.6926,206.92,206.66,10.1226]
[1731239253434,5.24401167,206.9,206.67,6.4253]
[1731239253742,16.5004,206.8,206.67,6.4253]
[1731239253947,22.05727833,206.8,206.67,6.4253]
[1731239254260,5.55687833,206.79,206.67,6.4253]
[1731239254438,20.0,206.79,206.67,6.4253]
[1731239256348,20.0,206.79,206.68,16.5479]
[1731239257058,16.5004,206.8,206.68,16.5479]
[1731239258552,20.0,206.79,206.68,16.5479]
[1731239260456,15.7926,206.9,206.71,6.4253]
[1731239260655,16.5479,206.8,206.71,6.4253]
[1731239272558,20.0,206.79,206.71,6.4253]
[1731239274078,16.5479,206.8,206.71,6.4253]
[1731239274449,20.0,206.79,206.71,6.4253]
[1731239278078,16.5479,206.8,206.71,6.4253]
[1731239279469,15.7926,206.9,206.71,12.90978344]
[1731239279860,12.909784,206.89,206.71,12.90978344]
[1731239280785,20.0,206.88,206.71,6.4253]
[1731239280975,12.909784,206.89,206.71,6.5253]
[1731239281274,12.909784,206.89,206.73,16.292]
[1731239282372,20.0,206.88,206.73,16.292]
[1731239282784,20.0,206.88,206.73,16.392]
[1731239282962,20.0,206.88,206.73,16.292]
[1731239283685,20.0,206.88,206.73,16.392]
[1731239284388,12.909784,206.89,206.76,16.1625]
[1731239284886,12.909784,206.89,206.78,16.1625]
[1731239285100,4.06223874,206.96,206.79,0.1]
[1731239285265,15.7483,207.0,206.79,0.1]
[1731239285466,15.8483,206.99,206.79,0.1]
[1731239285775,15.8483,206.99,206.8,16.1625]
[1731239286082,15.8483,206.99,206.81,0.1]
[1731239286282,15.8483,206.99,206.83,0.1]
[1731239286462,14.3483,206.99,206.83,0.1]
[1731239286993,14.3483,206.99,206.85,0.1]
[1731239287283,14.3483,206.99,206.86,16.1625]
[1731239288466,14.3483,206.99,206.8,0.1]
[1731239288717,0.12,207.09,206.8,0.1]
[1731239288718,0.12,207.09,206.9,16.1625]
[1731239288993,10.453561,207.08,206.9,16.1625]
[1731239289484,4.29539614,207.07,206.94,16.1625]
[1731239289685,0.12,207.09,206.98,6.0399]
[1731239290072,10.453561,207.06,206.94,10.1226]
[1731239290370,15.12840378,207.06,206.93,6.0399]
[1731239290567,10.453561,207.06,206.93,6.0399]
[1731239290777,20.12549,207.05,206.93,6.0399]
[1731239290977,20.12549,207.03,206.89,10.1226]
[1731239291582,20.0,207.03,206.89,10.1226]
[1731239293283,24.10126179,207.03,206.89,10.1226]
[1731239295288,0.12549,207.02,206.89,10.1226]
[1731239296305,24.10126179,207.03,206.89,10.1226]
[1731239296679,0.12549,207.02,206.89,10.1226]
[1731239296886,0.12549,207.02,206.88,6.0399]
[1731239299000,24.10126179,207.03,206.88,6.0399]
[1731239299394,0.12549,207.02,206.84,10.1226]
[1731239299593,0.1,207.01,206.84,10.1226]
[1731239299786,0.12549,206.98,206.84,10.1226]
[1731239299982,20.12549,206.96,206.84,10.1226]
[1731239300593,0.43494945,206.95,206.84,10.1226]
[1731239300796,20.12549,206.98,206.84,10.1226]
[1731239301208,0.77244946,206.97,206.84,10.1226]
[1731239301405,0.12549,206.96,206.83,6.2054]
[1731239301901,20.0,206.98,206.83,6.2054]
[1731239302294,0.12549,206.96,206.83,6.2054]
[1731239302595,14.5,206.99,206.83,6.2054]
[1731239302596,5.06759401,207.07,206.84,10.1226]
[1731239302787,0.1,207.07,206.84,10.1226]
[1731239302982,0.12,207.09,206.84,10.1226]
[1731239302983,14.72,207.09,206.84,10.1226]
[1731239303491,0.85184875,207.03,206.85,6.3674]
[1731239303691,0.12549,207.05,206.85,6.3674]
[1731239303891,4.2131002,207.05,206.85,6.3674]
[1731239304097,0.12549,207.05,206.85,6.3674]
[1731239304605,20.0,207.05,206.85,6.3674]
[1731239305203,10.453561,207.06,207.01,0.0956545]
[1731239305389,3.81394746,207.05,207.01,0.0956545]
[1731239305585,10.453561,207.06,207.01,0.0956545]
[1731239306507,14.49978887,207.06,207.01,0.0956545]
[1731239306690,20.0,207.05,207.01,0.0956545]
[1731239307008,12.14682331,207.04,207.01,0.0956545]
[1731239307227,10.453561,207.06,207.01,0.0956545]
[1731239308094,1.41394594,207.05,207.01,0.0956545]
[1731239308311,10.453561,207.06,207.01,0.0956545]
[1731239308495,0.12,207.09,207.02,6.3674]
[1731239309021,3.861761,207.08,207.04,0.1]
[1731239309194,0.12,207.09,207.04,0.1]
[1731239309393,0.12,207.09,207.04,7.87526692]
[1731239309607,0.12,207.09,207.05,6.3356]
[1731239311410,0.12,207.09,207.01,0.0956545]
[1731239317506,0.12,207.09,207.04,0.1]
[1731239317822,0.12,207.09,207.05,6.3381]
[1731239322100,0.12,207.09,207.01,6.3920545]
[1731239322699,0.12,207.09,207.04,0.1]
[1731239323009,0.12,207.09,207.01,6.3920545]
[1731239326926,0.12,207.09,207.01,0.0956545]
[1731239334333,19.98919943,207.15,207.01,0.0956545]
[1731239338729,5.0898,207.16,207.01,0.0956545]
[1731239340030,20.0,207.15,207.01,0.0956545]
[1731239340619,5.0898,207.16,207.02,6.2964]
[1731239341216,5.0898,207.16,207.02,6.3964]
[1731239341410,5.0898,207.16,207.04,0.1]
[1731239341615,5.0898,207.16,207.02,6.3964]
[1731239341817,5.0898,207.16,207.02,6.4964]
[1731239342123,5.0898,207.16,207.02,6.3964]
[1731239342324,5.0898,207.16,207.03,0.1]
[1731239342932,5.0898,207.16,207.03,0.2]
[1731239343227,5.0898,207.16,207.02,6.2964]
[1731239345626,20.0,207.15,207.02,6.2964]
[1731239348043,5.0898,207.16,207.02,6.2964]
[1731239351137,20.0,207.15,207.02,6.2964]
[1731239351538,5.0898,207.16,207.03,0.2]
[1731239351936,5.0898,207.16,207.02,11.61068262]
[1731239352136,5.0898,207.16,207.02,6.0818]
[1731239354936,5.0898,207.16,207.03,5.83009373]
[1731239355252,5.0898,207.16,207.03,5.73009373]
[1731239357650,5.0898,207.16,207.02,6.0818]
[1731239360151,5.0898,207.16,207.02,11.81189373]
[1731239360349,5.0898,207.16,207.03,5.73009373]
[1731239360553,5.0898,207.16,207.03,5.83009373]
[1731239360740,5.0898,207.16,207.03,5.73009373]
[1731239363252,20.0,207.19,207.03,5.73009373]
[1731239363449,10.21410351,207.18,207.03,5.73009373]
[1731239363776,20.0,207.19,207.03,5.73009373]
[1731239365659,20.0,207.19,207.02,6.1818]
[1731239366453,20.0,207.19,207.02,11.52953178]
[1731239366660,5.0898,207.2,207.06,6.3381]
[1731239366957,5.0898,207.2,207.06,11.89527622]
[1731239367542,5.0898,207.2,207.07,5.55717622]
[1731239367744,5.0898,207.2,207.1,6.3381]
[1731239368051,5.0898,207.2,207.11,5.85217622]
[1731239368453,5.0898,207.2,207.11,5.75217622]
[1731239369251,5.0898,207.2,207.11,5.85217622]
[1731239369454,5.0898,207.2,207.11,5.75217622]
[1731239370667,5.0898,207.2,207.12,7.50325168]
[1731239370870,5.0898,207.2,207.13,12.39177622]
[1731239371041,5.0898,207.2,207.13,6.4381]
[1731239371246,5.0898,207.2,207.13,6.3381]
[1731239371555,5.0898,207.2,207.13,6.4381]
[1731239371940,5.0898,207.2,207.13,6.3381]
[1731239377958,5.0898,207.2,207.06,6.3381]
[1731239378161,5.0898,207.2,207.06,13.26894649]
[1731239379666,5.0898,207.2,207.07,6.93084649]
[1731239380655,5.0898,207.2,207.06,6.3381]
[1731239381349,20.0,207.19,207.06,6.3381]
[1731239382362,5.0898,207.2,207.07,6.93084649]
[1731239382666,20.0,207.19,207.07,6.93084649]
[1731239382864,20.0,207.17,207.01,0.0956545]
[1731239384753,0.1,207.16,207.01,0.0956545]
[1731239385471,24.02141045,207.17,207.01,0.0956545]
[1731239386853,0.1,207.16,207.01,0.0956545]
[1731239387762,24.02141045,207.17,207.01,0.0956545]
[1731239387962,24.12141045,207.17,207.01,0.0956545]
[1731239389565,24.02141045,207.17,207.01,0.0956545]
[1731239390369,5.0898,207.2,207.03,6.0086]
[1731239390561,5.0898,207.2,207.04,11.7934616]
[1731239391667,20.0,207.19,207.04,5.62294289]
[1731239391874,20.0,207.19,207.04,11.7934616]
[1731239392060,5.0898,207.2,207.04,11.7934616]
[1731239393265,20.0,207.19,207.04,11.8934616]
[1731239393778,20.0,207.19,207.04,6.27051871]
[1731239393949,20.0,207.19,207.03,6.0086]
[1731239395867,20.1,207.19,207.03,6.0086]
[1731239396070,20.2,207.19,207.01,0.0956545]
[1731239396460,20.1,207.19,207.01,0.0956545]
[1731239396868,20.0,207.19,207.01,0.0956545]
[1731239397373,20.0,207.19,207.01,0.1956545]